[Event "Titled Tuesday Blitz April 18 Late 2023"]
[White "Costachi, Mihnea"]
[Black "Rastbod, Ali"]
[WhiteFideId "1217518"]
[BlackFideId "12567477"]
[WhiteElo "2456"]
[BlackElo "2248"]
[Result "1-0"]
[Round "07"]
[TimeControl "180+2"]
[Date "2023.04.18"]
[WhiteClock "0:00:17"]
[BlackClock "0:00:03"]

1. Nc3 {[%clk 0:03:00]}  d5 {[%clk 0:02:55]} 2. d4 {[%clk 0:03:01]}  Nf6 {[%clk 0:02:55]} 3. Bf4 {[%clk 0:03:01]}  c5 {[%clk 0:02:53]} 4. e3 {[%clk 0:03:01]}  cxd4 {[%clk 0:02:54]} 5. exd4 {[%clk 0:03:01]}  a6 {[%clk 0:02:53]} 6. Nf3 {[%clk 0:03:01]}  Bg4 {[%clk 0:02:52]} 7. Be2 {[%clk 0:02:59]}  Bxf3 {[%clk 0:02:51]} 8. Bxf3 {[%clk 0:02:59]}  Nc6 {[%clk 0:02:51]} 9. O-O {[%clk 0:02:59]}  e6 {[%clk 0:02:50]} 10. Ne2 {[%clk 0:02:56]}  Bd6 {[%clk 0:02:49]} 11. Bg5 {[%clk 0:02:56]}  Qc7 {[%clk 0:02:43]} 12. h3 {[%clk 0:02:50]}  O-O {[%clk 0:02:39]} 13. Bxf6 {[%clk 0:02:50]}  gxf6 {[%clk 0:02:37]} 14. Qd2 {[%clk 0:02:45]}  Ne7 {[%clk 0:02:29]} 15. Qh6 {[%clk 0:02:35]}  Ng6 {[%clk 0:01:54]} 16. c3 {[%clk 0:02:31]}  Kh8 {[%clk 0:01:39]} 17. Kh1 {[%clk 0:02:29]}  Rg8 {[%clk 0:01:39]} 18. g3 {[%clk 0:02:28]}  f5 {[%clk 0:01:31]} 19. Rg1 {[%clk 0:02:26]}  Ne7 {[%clk 0:01:20]} 20. Qf6+ {[%clk 0:02:20]}  Rg7 {[%clk 0:01:20]} 21. g4 {[%clk 0:02:21]}  Ng8 {[%clk 0:01:21]} 22. Qh4 {[%clk 0:02:18]}  Be7 {[%clk 0:01:10]} 23. Qg3 {[%clk 0:02:18]}  Bd6 {[%clk 0:01:01]} 24. Qh4 {[%clk 0:02:17]}  Be7 {[%clk 0:01:02]} 25. Qh5 {[%clk 0:01:49]}  Nf6 {[%clk 0:00:59]} 26. Qh6 {[%clk 0:01:49]}  Rg6 {[%clk 0:00:42]} 27. Qe3 {[%clk 0:01:46]}  fxg4 {[%clk 0:00:33]} 28. Bxg4 {[%clk 0:01:47]}  Nxg4 {[%clk 0:00:28]} 29. Rxg4 {[%clk 0:01:47]}  Rxg4 {[%clk 0:00:29]} 30. hxg4 {[%clk 0:01:48]}  Rg8 {[%clk 0:00:28]} 31. Rg1 {[%clk 0:01:45]}  Rg6 {[%clk 0:00:17]} 32. Nf4 {[%clk 0:01:37]}  Rh6+ {[%clk 0:00:17]} 33. Nh5 {[%clk 0:01:37]}  Rg6 {[%clk 0:00:15]} 34. f4 {[%clk 0:01:25]}  Qd7 {[%clk 0:00:07]} 35. Qe5+ {[%clk 0:01:05]}  f6 {[%clk 0:00:07]} 36. Qe3 {[%clk 0:01:04]}  Bd6 {[%clk 0:00:07]} 37. f5 {[%clk 0:00:56]}  exf5 {[%clk 0:00:06]} 38. gxf5 {[%clk 0:00:57]}  Rxg1+ {[%clk 0:00:06]} 39. Kxg1 {[%clk 0:00:58]}  Qf7 {[%clk 0:00:05]} 40. Qh6 {[%clk 0:00:58]}  Be7 {[%clk 0:00:04]} 41. Nf4 {[%clk 0:00:52]}  Kg8 {[%clk 0:00:03]} 42. Ne6 {[%clk 0:00:43]}  Bd6 {[%clk 0:00:03]} 43. Kg2 {[%clk 0:00:41]}  Kh8 {[%clk 0:00:03]} 44. Kf3 {[%clk 0:00:41]}  b5 {[%clk 0:00:02]} 45. a3 {[%clk 0:00:40]}  Be7 {[%clk 0:00:01]} 46. Ke2 {[%clk 0:00:40]}  Bd6 {[%clk 0:00:02]} 47. Kd3 {[%clk 0:00:41]}  Be7 {[%clk 0:00:02]} 48. Kc2 {[%clk 0:00:41]}  Bd6 {[%clk 0:00:02]} 49. Kb3 {[%clk 0:00:42]}  Bb8 {[%clk 0:00:03]} 50. Kb4 {[%clk 0:00:38]}  Bd6+ {[%clk 0:00:03]} 51. Kb3 {[%clk 0:00:35]}  Bb8 {[%clk 0:00:02]} 52. Kc2 {[%clk 0:00:33]}  Bd6 {[%clk 0:00:02]} 53. Kb1 {[%clk 0:00:32]}  Bb8 {[%clk 0:00:02]} 54. Ka2 {[%clk 0:00:33]}  Ba7 {[%clk 0:00:03]} 55. Qf4 {[%clk 0:00:28]}  Qd7 {[%clk 0:00:03]} 56. Qh4 {[%clk 0:00:26]}  Qf7 {[%clk 0:00:03]} 57. Qh2 {[%clk 0:00:25]}  Qd7 {[%clk 0:00:03]} 58. Nf8 {[%clk 0:00:24]}  Qf7 {[%clk 0:00:03]} 59. Qd6 {[%clk 0:00:19]}  h6 {[%clk 0:00:03]} 60. Ng6+ {[%clk 0:00:17]}  Kg7 {[%clk 0:00:03]} 61. Qd8 {[%clk 0:00:17]} 1-0


[Site "https://www.chess.com"]

[Event "Titled Tuesday Blitz April 18 Late 2023"]
[White "Suder, Jakub"]
[Black "Baskakov, Egor"]
[WhiteFideId "1195310"]
[BlackFideId "24197866"]
[WhiteElo "2287"]
[BlackElo "2212"]
[Result "0-1"]
[Round "07"]
[TimeControl "180+2"]
[Date "2023.04.18"]
[WhiteClock "0:02:00"]
[BlackClock "0:02:30"]

1. d4 {[%clk 0:03:00]}  Nf6 {[%clk 0:03:00]} 2. c4 {[%clk 0:02:58]}  e6 {[%clk 0:03:01]} 3. Nc3 {[%clk 0:02:57]}  d5 {[%clk 0:03:01]} 4. cxd5 {[%clk 0:02:56]}  Nxd5 {[%clk 0:03:02]} 5. Bd2 {[%clk 0:02:55]}  Be7 {[%clk 0:03:01]} 6. e4 {[%clk 0:02:54]}  Nxc3 {[%clk 0:03:02]} 7. Bxc3 {[%clk 0:02:54]}  O-O {[%clk 0:03:01]} 8. Nf3 {[%clk 0:02:54]}  b6 {[%clk 0:03:02]} 9. Bc4 {[%clk 0:02:51]}  Bb7 {[%clk 0:03:02]} 10. Qe2 {[%clk 0:02:52]}  Nd7 {[%clk 0:03:01]} 11. Rd1 {[%clk 0:02:52]}  Nf6 {[%clk 0:03:00]} 12. Bd3 {[%clk 0:02:36]}  c5 {[%clk 0:02:51]} 13. dxc5 {[%clk 0:02:30]}  Bxc5 {[%clk 0:02:49]} 14. e5 {[%clk 0:02:30]}  Nd5 {[%clk 0:02:49]} 15. Qe4 {[%clk 0:02:29]}  g6 {[%clk 0:02:46]} 16. Bd4 {[%clk 0:02:07]}  Nc3 {[%clk 0:02:32]} 17. Qxb7 {[%clk 0:02:00]}  Nxd1 {[%clk 0:02:31]} 18. Bxc5 {[%clk 0:02:00]}  bxc5 {[%clk 0:02:30]} 0-1


[Site "https://www.chess.com"]

[Event "Titled Tuesday Blitz April 18 Late 2023"]
[White "Janaszak, Dawid"]
[Black "Smirnov, Pavel"]
[WhiteFideId "1119206"]
[BlackFideId "4123425"]
[WhiteElo "2220"]
[BlackElo "2519"]
[Result "1/2-1/2"]
[Round "07"]
[TimeControl "180+2"]
[Date "2023.04.18"]
[WhiteClock "0:00:23"]
[BlackClock "0:00:11"]

1. e4 {[%clk 0:03:00]}  e5 {[%clk 0:02:55]} 2. Nf3 {[%clk 0:03:01]}  Nc6 {[%clk 0:02:54]} 3. d4 {[%clk 0:03:01]}  exd4 {[%clk 0:02:54]} 4. Nxd4 {[%clk 0:03:02]}  Nf6 {[%clk 0:02:54]} 5. Nxc6 {[%clk 0:03:02]}  bxc6 {[%clk 0:02:54]} 6. e5 {[%clk 0:03:02]}  Qe7 {[%clk 0:02:54]} 7. Qe2 {[%clk 0:03:03]}  Nd5 {[%clk 0:02:54]} 8. h4 {[%clk 0:03:02]}  Qe6 {[%clk 0:02:54]} 9. Nd2 {[%clk 0:03:01]}  Nb4 {[%clk 0:02:47]} 10. Nf3 {[%clk 0:02:51]}  Ba6 {[%clk 0:02:46]} 11. c4 {[%clk 0:02:41]}  d5 {[%clk 0:02:36]} 12. Nd4 {[%clk 0:02:22]}  Qd7 {[%clk 0:02:36]} 13. a3 {[%clk 0:01:11]}  dxc4 {[%clk 0:02:15]} 14. axb4 {[%clk 0:01:05]}  Qxd4 {[%clk 0:02:13]} 15. Rxa6 {[%clk 0:00:59]}  Bxb4+ {[%clk 0:02:13]} 16. Bd2 {[%clk 0:01:00]}  Qxb2 {[%clk 0:02:11]} 17. Bxb4 {[%clk 0:00:49]}  Qxb4+ {[%clk 0:02:07]} 18. Qd2 {[%clk 0:00:39]}  c3 {[%clk 0:01:59]} 19. Qc2 {[%clk 0:00:39]}  Rd8 {[%clk 0:00:44]} 20. Bd3 {[%clk 0:00:31]}  Qd4 {[%clk 0:00:32]} 21. Rh3 {[%clk 0:00:31]}  O-O {[%clk 0:00:30]} 22. Rxc6 {[%clk 0:00:31]}  Rfe8 {[%clk 0:00:25]} 23. Re3 {[%clk 0:00:28]}  Rxe5 {[%clk 0:00:23]} 24. Rxe5 {[%clk 0:00:28]}  Qxe5+ {[%clk 0:00:23]} 25. Kf1 {[%clk 0:00:29]}  Qd4 {[%clk 0:00:19]} 26. Rxc3 {[%clk 0:00:28]}  Qxh4 {[%clk 0:00:19]} 27. f3 {[%clk 0:00:25]}  Qh1+ {[%clk 0:00:17]} 28. Kf2 {[%clk 0:00:26]}  Re8 {[%clk 0:00:17]} 29. Be2 {[%clk 0:00:24]}  Qh4+ {[%clk 0:00:14]} 30. Kf1 {[%clk 0:00:23]}  Qh1+ {[%clk 0:00:13]} 31. Kf2 {[%clk 0:00:23]}  Qh4+ {[%clk 0:00:13]} 32. Kf1 {[%clk 0:00:23]}  Qh1+ {[%clk 0:00:11]} 33. Kf2 {[%clk 0:00:23]} 1/2-1/2


[Site "https://www.chess.com"]

[Event "Titled Tuesday Blitz April 18 Late 2023"]
[White "Djokic, Mihailo"]
[Black "Vovk, Orest"]
[WhiteFideId "976440"]
[BlackFideId "14113490"]
[WhiteElo "2294"]
[BlackElo "2215"]
[Result "1/2-1/2"]
[Round "07"]
[TimeControl "180+2"]
[Date "2023.04.18"]
[WhiteClock "0:00:06"]
[BlackClock "0:00:08"]

1. e4 {[%clk 0:03:00]}  g5 {[%clk 0:02:54]} 2. d4 {[%clk 0:03:00]}  h6 {[%clk 0:02:52]} 3. Nc3 {[%clk 0:02:59]}  Bg7 {[%clk 0:02:49]} 4. Be3 {[%clk 0:02:59]}  c5 {[%clk 0:02:49]} 5. dxc5 {[%clk 0:02:54]}  Bxc3+ {[%clk 0:02:48]} 6. bxc3 {[%clk 0:02:54]}  Nc6 {[%clk 0:02:49]} 7. h4 {[%clk 0:02:53]}  Qa5 {[%clk 0:02:48]} 8. hxg5 {[%clk 0:02:52]}  hxg5 {[%clk 0:02:47]} 9. Rxh8 {[%clk 0:02:49]}  Qxc3+ {[%clk 0:02:47]} 10. Bd2 {[%clk 0:02:48]}  Qxh8 {[%clk 0:02:48]} 11. Bxg5 {[%clk 0:02:47]}  Qc3+ {[%clk 0:02:40]} 12. Bd2 {[%clk 0:02:46]}  Qxc5 {[%clk 0:02:40]} 13. Nf3 {[%clk 0:02:42]}  d6 {[%clk 0:02:39]} 14. Rb1 {[%clk 0:02:40]}  Nf6 {[%clk 0:02:32]} 15. Bd3 {[%clk 0:02:38]}  Qh5 {[%clk 0:02:25]} 16. Qe2 {[%clk 0:02:33]}  Bg4 {[%clk 0:02:17]} 17. Bc3 {[%clk 0:02:17]}  Nd7 {[%clk 0:02:02]} 18. Rxb7 {[%clk 0:02:04]}  Nde5 {[%clk 0:01:37]} 19. Bb5 {[%clk 0:02:03]}  Bxf3 {[%clk 0:01:28]} 20. gxf3 {[%clk 0:01:19]}  Nxf3+ {[%clk 0:01:26]} 21. Kd1 {[%clk 0:01:18]}  Qh1+ {[%clk 0:01:08]} 22. Be1 {[%clk 0:00:46]}  Rc8 {[%clk 0:01:04]} 23. Rxa7 {[%clk 0:00:22]}  Kf8 {[%clk 0:00:55]} 24. Bxc6 {[%clk 0:00:07]}  Rxc6 {[%clk 0:00:56]} 25. Ra3 {[%clk 0:00:03]}  Qxe1+ {[%clk 0:00:39]} 26. Qxe1 {[%clk 0:00:04]}  Nxe1 {[%clk 0:00:40]} 27. Kxe1 {[%clk 0:00:01]}  Rxc2 {[%clk 0:00:41]} 28. Ra8+ {[%clk 0:00:01]}  Kg7 {[%clk 0:00:40]} 29. Ra7 {[%clk 0:00:02]}  e6 {[%clk 0:00:38]} 30. a4 {[%clk 0:00:02]}  Ra2 {[%clk 0:00:35]} 31. a5 {[%clk 0:00:02]}  Kf6 {[%clk 0:00:35]} 32. a6 {[%clk 0:00:02]}  Ke5 {[%clk 0:00:35]} 33. Rxf7 {[%clk 0:00:02]}  Rxa6 {[%clk 0:00:35]} 34. f3 {[%clk 0:00:03]}  Kd4 {[%clk 0:00:33]} 35. Kf2 {[%clk 0:00:03]}  d5 {[%clk 0:00:25]} 36. exd5 {[%clk 0:00:02]}  exd5 {[%clk 0:00:26]} 37. Kg3 {[%clk 0:00:02]}  Rd6 {[%clk 0:00:21]} 38. Kf4 {[%clk 0:00:01]}  Kd3 {[%clk 0:00:17]} 39. Ke5 {[%clk 0:00:02]}  Rd8 {[%clk 0:00:17]} 40. f4 {[%clk 0:00:02]}  d4 {[%clk 0:00:17]} 41. f5 {[%clk 0:00:02]}  Ke3 {[%clk 0:00:17]} 42. Rh7 {[%clk 0:00:03]}  d3 {[%clk 0:00:16]} 43. Rh3+ {[%clk 0:00:03]}  Kf2 {[%clk 0:00:14]} 44. f6 {[%clk 0:00:02]}  Kg2 {[%clk 0:00:09]} 45. Rxd3 {[%clk 0:00:02]}  Rxd3 {[%clk 0:00:09]} 46. f7 {[%clk 0:00:02]}  Rf3 {[%clk 0:00:09]} 47. Ke6 {[%clk 0:00:03]}  Kg3 {[%clk 0:00:09]} 48. Ke7 {[%clk 0:00:03]}  Re3+ {[%clk 0:00:09]} 49. Kd7 {[%clk 0:00:03]}  Rf3 {[%clk 0:00:09]} 50. Ke7 {[%clk 0:00:04]}  Re3+ {[%clk 0:00:09]} 51. Kd7 {[%clk 0:00:04]}  Rd3+ {[%clk 0:00:09]} 52. Ke7 {[%clk 0:00:05]}  Rf3 {[%clk 0:00:08]} 53. f8=Q {[%clk 0:00:05]}  Rxf8 {[%clk 0:00:08]} 54. Kxf8 {[%clk 0:00:06]} 1/2-1/2


[Site "https://www.chess.com"]

[Event "Titled Tuesday Blitz April 18 Late 2023"]
[White "Al-Tarboush, Ward"]
[Black "Larino Nieto, David"]
[WhiteFideId "7601450"]
[BlackFideId "2256444"]
[WhiteElo "2265"]
[BlackElo "2506"]
[Result "0-1"]
[Round "07"]
[TimeControl "180+2"]
[Date "2023.04.18"]
[WhiteClock "0:00:45"]
[BlackClock "0:00:04"]

1. e4 {[%clk 0:03:00]}  d5 {[%clk 0:02:59]} 2. exd5 {[%clk 0:03:00]}  Qxd5 {[%clk 0:03:00]} 3. Nc3 {[%clk 0:03:00]}  Qa5 {[%clk 0:03:00]} 4. d4 {[%clk 0:03:00]}  Nf6 {[%clk 0:03:00]} 5. Nf3 {[%clk 0:03:01]}  Nc6 {[%clk 0:03:01]} 6. Bb5 {[%clk 0:03:02]}  Ne4 {[%clk 0:03:01]} 7. a4 {[%clk 0:02:59]}  a6 {[%clk 0:02:55]} 8. Bd3 {[%clk 0:02:42]}  Nxc3 {[%clk 0:02:54]} 9. bxc3 {[%clk 0:02:43]}  Bg4 {[%clk 0:02:49]} 10. O-O {[%clk 0:02:36]}  e6 {[%clk 0:02:49]} 11. h3 {[%clk 0:02:30]}  Bh5 {[%clk 0:02:46]} 12. g4 {[%clk 0:02:26]}  Bg6 {[%clk 0:02:45]} 13. c4 {[%clk 0:02:26]}  O-O-O {[%clk 0:02:21]} 14. Be3 {[%clk 0:02:21]}  Bxd3 {[%clk 0:01:56]} 15. cxd3 {[%clk 0:02:21]}  h5 {[%clk 0:01:56]} 16. c5 {[%clk 0:02:21]}  hxg4 {[%clk 0:00:53]} 17. hxg4 {[%clk 0:02:22]}  b6 {[%clk 0:00:44]} 18. Rb1 {[%clk 0:02:11]}  bxc5 {[%clk 0:00:42]} 19. Qb3 {[%clk 0:02:05]}  Nxd4 {[%clk 0:00:16]} 20. Bxd4 {[%clk 0:02:04]}  cxd4 {[%clk 0:00:15]} 21. Qb7+ {[%clk 0:02:04]}  Kd7 {[%clk 0:00:15]} 22. Rfc1 {[%clk 0:02:05]}  Bd6 {[%clk 0:00:15]} 23. Qc6+ {[%clk 0:01:53]}  Ke7 {[%clk 0:00:15]} 24. Qe4 {[%clk 0:01:49]}  Rh3 {[%clk 0:00:13]} 25. Nxd4 {[%clk 0:01:47]}  Qg5 {[%clk 0:00:09]} 26. Nc6+ {[%clk 0:01:47]}  Kd7 {[%clk 0:00:09]} 27. Nxd8 {[%clk 0:01:45]}  Kxd8 {[%clk 0:00:10]} 28. Rb8+ {[%clk 0:01:45]}  Ke7 {[%clk 0:00:10]} 29. Re1 {[%clk 0:01:26]}  Rh4 {[%clk 0:00:10]} 30. f3 {[%clk 0:01:24]}  Qd2 {[%clk 0:00:09]} 31. Qe2 {[%clk 0:01:22]}  Bc5+ {[%clk 0:00:08]} 32. Kg2 {[%clk 0:01:20]}  Qf4 {[%clk 0:00:08]} 33. Rh1 {[%clk 0:01:21]}  Rxh1 {[%clk 0:00:07]} 34. Kxh1 {[%clk 0:01:21]}  Qc1+ {[%clk 0:00:07]} 35. Kg2 {[%clk 0:01:14]}  Qg1+ {[%clk 0:00:08]} 36. Kh3 {[%clk 0:01:14]}  Bd6 {[%clk 0:00:07]} 37. Qg2 {[%clk 0:01:14]}  Qc1 {[%clk 0:00:06]} 38. g5 {[%clk 0:01:13]}  Qf4 {[%clk 0:00:03]} 39. Rh8 {[%clk 0:01:06]}  Qf5+ {[%clk 0:00:03]} 40. Qg4 {[%clk 0:01:06]}  Qxd3 {[%clk 0:00:04]} 41. g6 {[%clk 0:01:02]}  f5 {[%clk 0:00:02]} 42. Qh4+ {[%clk 0:01:01]}  Kd7 {[%clk 0:00:03]} 43. Qd8+ {[%clk 0:01:01]}  Kc6 {[%clk 0:00:03]} 44. Qa8+ {[%clk 0:00:52]}  Kc5 {[%clk 0:00:04]} 45. Rb8 {[%clk 0:00:52]}  Qf1+ {[%clk 0:00:03]} 46. Kh4 {[%clk 0:00:52]}  Qf2+ {[%clk 0:00:04]} 47. Kg5 {[%clk 0:00:44]}  Qg3+ {[%clk 0:00:04]} 48. Kh5 {[%clk 0:00:44]}  Qh3+ {[%clk 0:00:05]} 49. Kg5 {[%clk 0:00:45]}  Qg2+ {[%clk 0:00:04]} 50. Kh4 {[%clk 0:00:45]}  Be7+ {[%clk 0:00:03]} 51. Kh5 {[%clk 0:00:45]}  Qg5# {[%clk 0:00:04]} 0-1


[Site "https://www.chess.com"]

[Event "Titled Tuesday Blitz April 18 Late 2023"]
[White "Tregubov, Pavel V."]
[Black "liwadas82"]
[WhiteFideId "4115341"]
[WhiteElo "2425"]
[BlackElo "2546"]
[Result "1/2-1/2"]
[Round "07"]
[TimeControl "180+2"]
[Date "2023.04.18"]
[WhiteClock "0:00:06"]
[BlackClock "0:00:07"]

1. e4 {[%clk 0:03:00]}  e5 {[%clk 0:02:59]} 2. Nf3 {[%clk 0:03:00]}  Nc6 {[%clk 0:02:59]} 3. Bb5 {[%clk 0:03:01]}  a6 {[%clk 0:03:00]} 4. Ba4 {[%clk 0:03:01]}  Nf6 {[%clk 0:03:00]} 5. d4 {[%clk 0:03:01]}  exd4 {[%clk 0:02:59]} 6. O-O {[%clk 0:03:01]}  Be7 {[%clk 0:03:00]} 7. e5 {[%clk 0:02:59]}  Ne4 {[%clk 0:02:56]} 8. Nxd4 {[%clk 0:03:00]}  O-O {[%clk 0:02:37]} 9. Nf5 {[%clk 0:02:59]}  d5 {[%clk 0:02:07]} 10. Nxe7+ {[%clk 0:02:58]}  Nxe7 {[%clk 0:02:04]} 11. c3 {[%clk 0:02:58]}  Nc5 {[%clk 0:02:00]} 12. Bc2 {[%clk 0:02:58]}  Bf5 {[%clk 0:01:59]} 13. Na3 {[%clk 0:02:58]}  Bxc2 {[%clk 0:01:57]} 14. Nxc2 {[%clk 0:02:58]}  Qd7 {[%clk 0:01:54]} 15. Be3 {[%clk 0:02:55]}  Ne6 {[%clk 0:01:51]} 16. Qd3 {[%clk 0:02:44]}  c5 {[%clk 0:01:40]} 17. b4 {[%clk 0:02:28]}  cxb4 {[%clk 0:01:26]} 18. cxb4 {[%clk 0:02:08]}  d4 {[%clk 0:01:20]} 19. Bd2 {[%clk 0:01:48]}  Rac8 {[%clk 0:00:57]} 20. Rac1 {[%clk 0:01:34]}  Qb5 {[%clk 0:00:45]} 21. Qxb5 {[%clk 0:01:27]}  axb5 {[%clk 0:00:46]} 22. Rfd1 {[%clk 0:01:16]}  Nd5 {[%clk 0:00:40]} 23. Ne1 {[%clk 0:01:07]}  Nef4 {[%clk 0:00:33]} 24. Bxf4 {[%clk 0:01:03]}  Nxf4 {[%clk 0:00:34]} 25. Kf1 {[%clk 0:01:02]}  Ne6 {[%clk 0:00:29]} 26. Nd3 {[%clk 0:00:53]}  Rc4 {[%clk 0:00:28]} 27. f4 {[%clk 0:00:50]}  Rfc8 {[%clk 0:00:26]} 28. f5 {[%clk 0:00:45]}  Ng5 {[%clk 0:00:09]} 29. Ra1 {[%clk 0:00:12]}  Ne4 {[%clk 0:00:07]} 30. a3 {[%clk 0:00:09]}  Nc3 {[%clk 0:00:05]} 31. Rd2 {[%clk 0:00:09]}  Ne4 {[%clk 0:00:05]} 32. Rdd1 {[%clk 0:00:07]}  Nc3 {[%clk 0:00:05]} 33. Re1 {[%clk 0:00:07]}  Na4 {[%clk 0:00:05]} 34. e6 {[%clk 0:00:06]}  fxe6 {[%clk 0:00:05]} 35. fxe6 {[%clk 0:00:06]}  Kf8 {[%clk 0:00:05]} 36. Kg1 {[%clk 0:00:06]}  Ke7 {[%clk 0:00:05]} 37. Re4 {[%clk 0:00:06]}  Rc3 {[%clk 0:00:05]} 38. Nf4 {[%clk 0:00:06]}  Rc1+ {[%clk 0:00:05]} 39. Rxc1 {[%clk 0:00:05]}  Rxc1+ {[%clk 0:00:06]} 40. Kf2 {[%clk 0:00:06]}  Rc2+ {[%clk 0:00:06]} 41. Kf3 {[%clk 0:00:06]}  Rc3+ {[%clk 0:00:06]} 42. Kg4 {[%clk 0:00:06]}  Rc1 {[%clk 0:00:04]} 43. Rxd4 {[%clk 0:00:05]}  g5 {[%clk 0:00:03]} 44. Rd7+ {[%clk 0:00:04]}  Ke8 {[%clk 0:00:03]} 45. Nd5 {[%clk 0:00:04]}  Rc4+ {[%clk 0:00:02]} 46. Kxg5 {[%clk 0:00:03]}  h6+ {[%clk 0:00:03]} 47. Kxh6 {[%clk 0:00:03]}  Rf4 {[%clk 0:00:03]} 48. Nxf4 {[%clk 0:00:03]}  Nb6 {[%clk 0:00:04]} 49. Rxb7 {[%clk 0:00:02]}  Nc4 {[%clk 0:00:04]} 50. Nd5 {[%clk 0:00:02]}  Ne5 {[%clk 0:00:04]} 51. Nf6+ {[%clk 0:00:02]}  Kd8 {[%clk 0:00:05]} 52. e7+ {[%clk 0:00:02]}  Kc8 {[%clk 0:00:06]} 53. e8=Q+ {[%clk 0:00:03]}  Kxb7 {[%clk 0:00:06]} 54. Qxe5 {[%clk 0:00:04]}  Kb6 {[%clk 0:00:06]} 55. Qc5+ {[%clk 0:00:04]}  Kb7 {[%clk 0:00:07]} 56. Qxb5+ {[%clk 0:00:04]}  Kc7 {[%clk 0:00:07]} 57. Qc5+ {[%clk 0:00:05]}  Kd8 {[%clk 0:00:07]} 58. b5 {[%clk 0:00:06]} 1/2-1/2


[Site "https://www.chess.com"]

[Event "Titled Tuesday Blitz April 18 Late 2023"]
[White "ElenGajger"]
[Black "Amburgy, Ryan"]
[BlackFideId "30924820"]
[WhiteElo "2460"]
[BlackElo "2134"]
[Result "0-1"]
[Round "07"]
[TimeControl "180+2"]
[Date "2023.04.18"]
[WhiteClock "0:00:01"]
[BlackClock "0:00:07"]

1. e4 {[%clk 0:03:00]}  c6 {[%clk 0:02:59]} 2. d4 {[%clk 0:03:00]}  d5 {[%clk 0:02:59]} 3. Nd2 {[%clk 0:03:01]}  dxe4 {[%clk 0:03:00]} 4. Nxe4 {[%clk 0:03:01]}  Nf6 {[%clk 0:03:00]} 5. Nxf6+ {[%clk 0:03:01]}  exf6 {[%clk 0:03:01]} 6. Nf3 {[%clk 0:03:00]}  Bd6 {[%clk 0:03:02]} 7. Be2 {[%clk 0:03:00]}  O-O {[%clk 0:03:02]} 8. h3 {[%clk 0:03:00]}  Bf5 {[%clk 0:03:01]} 9. O-O {[%clk 0:03:00]}  Nd7 {[%clk 0:02:59]} 10. Be3 {[%clk 0:02:59]}  Re8 {[%clk 0:02:59]} 11. c4 {[%clk 0:02:53]}  Nf8 {[%clk 0:02:58]} 12. c5 {[%clk 0:02:48]}  Bc7 {[%clk 0:02:57]} 13. Qb3 {[%clk 0:02:46]}  Qd7 {[%clk 0:02:50]} 14. Rad1 {[%clk 0:02:43]}  Be6 {[%clk 0:02:48]} 15. Bc4 {[%clk 0:02:31]}  Rad8 {[%clk 0:02:38]} 16. Rfe1 {[%clk 0:02:27]}  b5 {[%clk 0:02:30]} 17. Bxe6 {[%clk 0:02:20]}  Nxe6 {[%clk 0:02:30]} 18. a4 {[%clk 0:01:53]}  a6 {[%clk 0:02:22]} 19. axb5 {[%clk 0:01:52]}  axb5 {[%clk 0:02:23]} 20. Ra1 {[%clk 0:01:22]}  Qd5 {[%clk 0:02:05]} 21. Qxd5 {[%clk 0:01:19]}  Rxd5 {[%clk 0:02:06]} 22. Ra6 {[%clk 0:01:10]}  Rc8 {[%clk 0:02:02]} 23. g3 {[%clk 0:01:04]}  Bb8 {[%clk 0:01:35]} 24. Rea1 {[%clk 0:01:01]}  Kf8 {[%clk 0:01:31]} 25. Rb6 {[%clk 0:00:58]}  Rdd8 {[%clk 0:01:15]} 26. Raa6 {[%clk 0:00:54]}  Nc7 {[%clk 0:01:16]} 27. Ra1 {[%clk 0:00:48]}  Nd5 {[%clk 0:01:16]} 28. Rb7 {[%clk 0:00:48]}  Rc7 {[%clk 0:01:10]} 29. Rxc7 {[%clk 0:00:46]}  Nxc7 {[%clk 0:01:05]} 30. Bf4 {[%clk 0:00:42]}  Ne6 {[%clk 0:01:06]} 31. Bxb8 {[%clk 0:00:39]}  Rxb8 {[%clk 0:01:07]} 32. Ra6 {[%clk 0:00:38]}  Rc8 {[%clk 0:01:01]} 33. Kf1 {[%clk 0:00:37]}  Ke8 {[%clk 0:00:59]} 34. Ke2 {[%clk 0:00:38]}  Kd7 {[%clk 0:00:45]} 35. Ke3 {[%clk 0:00:36]}  Nc7 {[%clk 0:00:42]} 36. Ra7 {[%clk 0:00:33]}  Ke6 {[%clk 0:00:43]} 37. Ke4 {[%clk 0:00:30]}  f5+ {[%clk 0:00:31]} 38. Kd3 {[%clk 0:00:29]}  f6 {[%clk 0:00:30]} 39. Nd2 {[%clk 0:00:26]}  g6 {[%clk 0:00:24]} 40. Nb3 {[%clk 0:00:22]}  Kd7 {[%clk 0:00:19]} 41. Na5 {[%clk 0:00:21]}  Ra8 {[%clk 0:00:19]} 42. Rxa8 {[%clk 0:00:21]}  Nxa8 {[%clk 0:00:20]} 43. Nb7 {[%clk 0:00:15]}  Nc7 {[%clk 0:00:19]} 44. Nd6 {[%clk 0:00:16]}  Nd5 {[%clk 0:00:16]} 45. f4 {[%clk 0:00:14]}  Ke6 {[%clk 0:00:15]} 46. Nc8 {[%clk 0:00:13]}  g5 {[%clk 0:00:15]} 47. fxg5 {[%clk 0:00:12]}  fxg5 {[%clk 0:00:16]} 48. Na7 {[%clk 0:00:12]}  Kd7 {[%clk 0:00:16]} 49. b3 {[%clk 0:00:12]}  Nf6 {[%clk 0:00:17]} 50. Ke3 {[%clk 0:00:12]}  h5 {[%clk 0:00:17]} 51. Kf3 {[%clk 0:00:11]}  Ne4 {[%clk 0:00:17]} 52. b4 {[%clk 0:00:09]}  Nc3 {[%clk 0:00:13]} 53. Ke3 {[%clk 0:00:06]}  Nd5+ {[%clk 0:00:13]} 54. Kd3 {[%clk 0:00:06]}  Nxb4+ {[%clk 0:00:13]} 55. Ke3 {[%clk 0:00:06]}  Nd5+ {[%clk 0:00:14]} 56. Kd3 {[%clk 0:00:07]}  h4 {[%clk 0:00:11]} 57. gxh4 {[%clk 0:00:06]}  gxh4 {[%clk 0:00:12]} 58. Ke2 {[%clk 0:00:04]}  Nf4+ {[%clk 0:00:11]} 59. Kf3 {[%clk 0:00:04]}  Nxh3 {[%clk 0:00:12]} 60. d5 {[%clk 0:00:04]}  cxd5 {[%clk 0:00:11]} 61. Nxb5 {[%clk 0:00:04]}  Ng5+ {[%clk 0:00:09]} 62. Kg2 {[%clk 0:00:01]}  Ne6 {[%clk 0:00:08]} 63. Nd6 {[%clk 0:00:01]}  f4 {[%clk 0:00:08]} 64. Nf7 {[%clk 0:00:01]}  Kc6 {[%clk 0:00:07]} 0-1


[Site "https://www.chess.com"]